fUSD/lending_fUSD_20240214
["ID","MTS","AMOUNT","RATE_DAILY","PERIOD"]
[313997962,1707919842369,-716.65,0.00036712,2]
[313997963,1707919842379,-500.0,0.00036712,2]
[313997964,1707919842389,-500.0,0.00036712,2]
[313997965,1707919842398,-1125.6,0.00036712,2]
[313997966,1707919842407,-500.0,0.00036712,2]
[313997968,1707919842416,-500.0,0.00036712,2]
[313997970,1707919842425,-500.0,0.00036712,2]
[313997972,1707919842434,-500.0,0.00036712,2]
[313997974,1707919842444,-500.0,0.00036712,2]
[313997976,1707919842453,-892.82,0.00036712,2]
[313997978,1707919842462,-500.0,0.00036712,2]
[313997980,1707919842472,-500.0,0.00036712,2]
[313997983,1707919842481,-549.02,0.00036712,2]
[313997985,1707919842491,-828.71,0.00036712,2]
[313997987,1707919842501,-500.0,0.00036712,2]
[313997989,1707919842510,-500.0,0.00036712,2]
[313997991,1707919842519,-500.0,0.00036712,2]
[313997993,1707919842529,-500.0,0.00036712,2]
[313997995,1707919842538,-786.53,0.00036712,2]
[313997997,1707919842547,-500.0,0.00036712,2]
[313997999,1707919842557,-500.0,0.00036712,2]
[313998001,1707919842566,-500.0,0.00036712,2]
[313998003,1707919842575,-644.84,0.00036712,2]
[313998005,1707919842584,-573.43,0.00036712,2]
[313998007,1707919842594,-280.21216521,0.00036712,2]
[313998009,1707919842603,-500.0,0.00036712,2]
[313998012,1707919842612,-500.0,0.00036712,2]
[313998014,1707919842621,-500.0,0.00036712,2]
[313998016,1707919842631,-500.0,0.00036712,2]
[313998018,1707919842640,-746.2,0.00036712,2]
[313998020,1707919842650,-500.0,0.00036712,2]
[313998022,1707919842659,-500.0,0.00036712,2]
[313998024,1707919842668,-500.0,0.00036712,2]
[313998026,1707919842677,-500.0,0.00036712,2]
[313998028,1707919842687,-500.0,0.00036712,2]
[313998030,1707919842696,-500.0,0.00036712,2]
[313998031,1707919842706,-979.62,0.00036712,2]
[313998032,1707919842715,-524.55,0.00036712,2]
[313998033,1707919842725,-605.39,0.00036712,2]
[313998034,1707919842734,-500.0,0.00036712,2]
[313998036,1707919842744,-623.16,0.00036712,2]
[313998037,1707919842753,-851.49,0.00036712,2]
[313998038,1707919842763,-500.0,0.00036712,2]
[313998039,1707919842772,-500.0,0.00036712,2]
[313998040,1707919842782,-500.0,0.00036712,2]
[313998041,1707919842791,-500.0,0.00036712,2]
[313998042,1707919842800,-845.33,0.00036712,2]
[313998043,1707919842810,-500.0,0.00036712,2]
[313998044,1707919842819,-525.61,0.00036712,2]
[313998045,1707919842828,-3843.36,0.00036712,2]
[313998046,1707919842838,-500.0,0.00036712,2]
[313998047,1707919842847,-772.57,0.00036712,2]
[313998048,1707919842856,-500.0,0.00036712,2]
[313998049,1707919842866,-500.0,0.00036712,2]
[313998050,1707919842875,-712.25,0.00036712,2]
[313998051,1707919842885,-500.0,0.00036712,2]
[313998052,1707919842894,-500.0,0.00036712,2]
[313998053,1707919842903,-1388.54,0.00036712,2]
[313998054,1707919842913,-500.0,0.00036712,2]
[313998055,1707919842922,-500.0,0.00036712,2]
[313998056,1707919842933,-500.0,0.00036712,2]
[313998057,1707919842942,-986.05,0.00036712,2]
[313998058,1707919842951,-5272.34,0.00036712,2]
[313998059,1707919842961,-500.0,0.00036712,2]
[313998060,1707919842971,-500.0,0.00036712,2]
[313998061,1707919842980,-500.0,0.00036712,2]
[313998062,1707919842989,-500.0,0.00036712,2]
[313998063,1707919842998,-500.0,0.00036712,2]
[313998064,1707919843008,-500.0,0.00036712,2]
[313998065,1707919843017,-500.0,0.00036712,2]
[313998066,1707919843028,-500.0,0.00036712,2]
[313998067,1707919843037,-500.0,0.00036712,2]
[313998068,1707919843046,-500.0,0.00036712,2]
[313998069,1707919843056,-500.0,0.00036712,2]
[313998070,1707919843065,-6246.09,0.00036712,2]
[313998071,1707919843074,-500.0,0.00036712,2]
[313998072,1707919843083,-500.0,0.00036712,2]
[313998073,1707919843092,-178.89,0.00036712,2]
[313998074,1707919843101,-500.0,0.00036712,2]
[313998075,1707919843110,-865.26,0.00036712,2]
[313998076,1707919843119,-500.0,0.00036712,2]
[313998077,1707919843128,-500.0,0.00036712,2]
[313998078,1707919843137,-605.48,0.00036712,2]
[313998079,1707919843147,-606.58,0.00036712,2]
[313998080,1707919843156,-889.82,0.00036712,2]
[313998081,1707919843165,-663.11,0.00036712,2]
[313998082,1707919843174,-897.46,0.00036712,2]
[313998083,1707919843182,-500.0,0.00036712,2]
[313998084,1707919843191,-7824.22,0.00036712,2]
[313998085,1707919843201,-500.0,0.00036712,2]
[313998086,1707919843211,-500.0,0.00036712,2]
[313998087,1707919843222,-500.0,0.00036712,2]
[313998088,1707919843231,-1108.54,0.00036712,2]
[313998089,1707919843240,-3860.08,0.00036712,2]
[313998090,1707919843249,-3812.58,0.00036712,2]
[313998091,1707919843259,-500.0,0.00036712,2]
[313998092,1707919843268,-500.0,0.00036712,2]
[313998093,1707919843277,-706.11,0.00036712,2]
[313998094,1707919843287,-1033.16,0.00036712,2]
[313998095,1707919843298,-663.74,0.00036712,2]
[313998096,1707919843307,-4473.58,0.00036712,2]
[313998097,1707919843317,-500.0,0.00036712,2]
[313998098,1707919843326,-500.0,0.00036712,2]
[313998099,1707919843335,-500.0,0.00036712,2]
[313998100,1707919843345,-1157.26,0.00036712,2]
[313998101,1707919843354,-500.0,0.00036712,2]
[313998102,1707919843363,-1152.81,0.00036712,2]
[313998103,1707919843373,-500.0,0.00036712,2]
[313998104,1707919843383,-500.0,0.00036712,2]
[313998105,1707919843392,-500.0,0.00036712,2]
[313998106,1707919843402,-597.35956745,0.00036712,2]
[313998107,1707919843411,-553.56,0.00036712,2]
[313998108,1707919843421,-1028.9,0.00036712,2]
[313998109,1707919843430,-500.0,0.00036712,2]
[313998110,1707919843439,-1547.32,0.00036712,2]
[313998111,1707919843449,-500.0,0.00036712,2]
[313998112,1707919843458,-552.26,0.00036712,2]
[313998113,1707919843467,-500.0,0.00036712,2]
[313998114,1707919843477,-500.0,0.00036712,2]
[313998115,1707919843487,-500.0,0.00036712,2]
[313998116,1707919843496,-500.0,0.00036712,2]
[313998117,1707919843506,-502.69346134,0.00036712,2]
[313998118,1707919843515,-500.0,0.00036712,2]
[313998119,1707919843526,-528.71,0.00036712,2]
[313998120,1707919843535,-2166.47,0.00036712,2]
[313998121,1707919843544,-3321.65,0.00036712,2]
[313998122,1707919843553,-500.0,0.00036712,2]
[313998123,1707919843563,-500.0,0.00036712,2]
[313998124,1707919843572,-500.0,0.00036712,2]
[313998125,1707919843581,-800.13,0.00036712,2]
[313998126,1707919843590,-500.0,0.00036712,2]
[313998127,1707919843599,-500.0,0.00036712,2]
[313998128,1707919843608,-1147.73,0.00036712,2]
[313998129,1707919843617,-500.0,0.00036712,2]
[313998130,1707919843627,-500.0,0.00036712,2]
[313998131,1707919843636,-573.73,0.00036712,2]
[313998132,1707919843645,-500.0,0.00036712,2]
[313998133,1707919843654,-500.0,0.00036712,2]
[313998134,1707919843663,-500.0,0.00036712,2]
[313998135,1707919843672,-33307.0,0.00036712,2]
[313998136,1707919843682,-500.0,0.00036712,2]
[313998137,1707919843691,-660.61,0.00036712,2]
[313998138,1707919843700,-7494.55,0.00036712,2]
[313998139,1707919843709,-788.65,0.00036712,2]
[313998140,1707919843719,-500.0,0.00036712,2]
[313998141,1707919843728,-500.0,0.00036712,2]
[313998142,1707919843737,-567.37,0.00036712,2]
[313998143,1707919843746,-500.0,0.00036712,2]
[313998144,1707919843755,-2976.44,0.00036712,2]
[313998145,1707919843765,-500.0,0.00036712,2]
[313998146,1707919843775,-731.57,0.00036712,2]
[313998147,1707919843784,-538.60150102,0.00036712,2]
[313998148,1707919843793,-1813.77,0.00036712,7]
[313998149,1707919843803,-802.93,0.00036712,2]
[313998150,1707919843812,-500.0,0.00036712,2]
[313998151,1707919843821,-500.0,0.00036712,2]
[313998152,1707919843830,-552.41,0.00036712,2]
[313998153,1707919843839,-500.0,0.00036712,2]
[313998154,1707919843848,-578.94,0.00036712,2]
[313998155,1707919843858,-500.0,0.00036712,2]
[313998156,1707919843867,-500.0,0.00036712,2]
[313998157,1707919843876,-1069.4,0.00036712,2]
[313998158,1707919843886,-953.33,0.00036712,2]
[313998159,1707919843895,-500.0,0.00036712,2]
[313998160,1707919843904,-1911.34,0.00036712,2]
[313998161,1707919843913,-1999.14,0.00036712,2]
[313998162,1707919843923,-500.0,0.00036712,2]
[313998163,1707919843934,-3204.8,0.00036712,2]
[313998164,1707919843943,-547.72,0.00036712,2]
[313998165,1707919843953,-1089.7,0.00036712,2]
[313998166,1707919843962,-501.74,0.00036712,2]
[313998168,1707919843971,-500.0,0.00036712,2]
[313998169,1707919843981,-734.97,0.00036712,2]
[313998170,1707919843990,-500.0,0.00036712,2]
[313998171,1707919843999,-500.0,0.00036712,2]
[313998172,1707919844010,-2920.53,0.00036712,2]
[313998173,1707919844019,-500.0,0.00036712,2]
[313998174,1707919844028,-500.0,0.00036712,2]
[313998175,1707919844038,-881.11,0.00036712,2]
[313998176,1707919844047,-1003.7,0.00036712,2]
[313998177,1707919844056,-780.27,0.00036712,2]
[313998178,1707919844065,-2201.32,0.00036712,2]
[313998179,1707919844074,-500.0,0.00036712,2]
[313998180,1707919844083,-500.0,0.00036712,2]
[313998181,1707919844092,-500.0,0.00036712,2]
[313998182,1707919844102,-500.0,0.00036712,2]
[313998183,1707919844111,-827.67,0.00036712,2]
[313998184,1707919844120,-599.15,0.00036712,2]
[313998185,1707919844130,-1841.92,0.00036712,2]
[313998186,1707919844139,-500.0,0.00036712,2]
[313998187,1707919844148,-508.66,0.00036712,2]
[313998188,1707919844157,-500.0,0.00036712,2]
[313998189,1707919844166,-8394.74,0.00036712,2]
[313998190,1707919844175,-3035.27,0.00036712,2]
[313998191,1707919844184,-3503.35,0.00036712,2]
[313998192,1707919844194,-775.37,0.00036712,2]
[313998193,1707919844203,-753.07,0.00036712,2]
[313998194,1707919844212,-500.0,0.00036712,2]
[313998195,1707919844291,-818.9,0.00036712,2]
[313998196,1707919844301,-500.0,0.00036712,2]
[313998197,1707919844310,-500.0,0.00036712,2]
[313998198,1707919844320,-500.0,0.00036712,2]
[313998199,1707919844329,-1167.66,0.00036712,2]
[313998200,1707919844339,-500.0,0.00036712,2]
[313998201,1707919844348,-500.0,0.00036712,2]
[313998202,1707919844357,-500.0,0.00036712,2]
[313998203,1707919844366,-4046.5,0.00036712,2]
[313998204,1707919844376,-500.0,0.00036712,2]
[313998205,1707919844385,-1122.13,0.00036712,2]
[313998206,1707919844395,-603.11,0.00036712,2]
[313998207,1707919844404,-500.0,0.00036712,2]
[313998208,1707919844413,-500.0,0.00036712,2]
[313998209,1707919844422,-10290.46,0.00036712,2]
[313998210,1707919844432,-2573.1,0.00036712,2]
[313998211,1707919844441,-500.0,0.00036712,2]
[313998212,1707919844450,-500.0,0.00036712,2]
[313998213,1707919844460,-500.0,0.00036712,2]
[313998214,1707919844470,-500.0,0.00036712,2]
[313998215,1707919844480,-1975.43,0.00036712,2]
[313998216,1707919844489,-500.0,0.00036712,2]
[313998217,1707919844499,-500.0,0.00036712,2]
[313998218,1707919844509,-543.44691724,0.00036712,2]
[313998219,1707919844519,-706.35,0.00036712,2]
[313998220,1707919844529,-1127.38,0.00036712,2]
[313998221,1707919844538,-500.0,0.00036712,2]
[313998222,1707919844549,-562.45,0.00036712,2]
[313998223,1707919844560,-17798.04,0.00036712,2]
[313998224,1707919844570,-500.0,0.00036712,2]
[313998225,1707919844580,-3212.99,0.00036712,2]
[313998226,1707919844590,-2886.82,0.00036712,2]
[313998227,1707919844599,-1450.42,0.00036712,2]
[313998228,1707919844609,-713.84,0.00036712,2]
[313998229,1707919844618,-2733.78,0.00036712,2]
[313998230,1707919844628,-4395.09,0.00036712,7]
[313998231,1707919844637,-1006.34,0.00036712,2]
[313998232,1707919844646,-500.0,0.00036712,2]
[313998233,1707919844656,-500.0,0.00036712,2]
[313998234,1707919844665,-558.37,0.00036712,2]
[313998235,1707919844675,-684.42,0.00036712,2]
[313998236,1707919844685,-670.37,0.00036712,2]
[313998237,1707919844694,-500.0,0.00036712,2]
[313998238,1707919844703,-574.28674287,0.00036712,2]
[313998239,1707919844712,-500.0,0.00036712,2]
[313998240,1707919844721,-2669.96,0.00036712,2]
[313998241,1707919844730,-1036.48,0.00036712,2]
[313998242,1707919844739,-613.62,0.00036712,2]
[313998243,1707919844748,-500.0,0.00036712,2]
[313998244,1707919844757,-1534.54,0.00036712,2]
[313998245,1707919844766,-500.0,0.00036712,2]
[313998246,1707919844774,-578.29,0.00036712,2]
[313998247,1707919844783,-500.0,0.00036712,2]
[313998248,1707919844792,-500.0,0.00036712,2]
[313998249,1707919844801,-500.0,0.00036712,2]
[313998250,1707919844810,-500.0,0.00036712,2]
[313998251,1707919844819,-674.53,0.00036712,2]
[313998252,1707919844828,-500.0,0.00036712,2]
[313998253,1707919844837,-594.16,0.00036712,2]
[313998254,1707919844845,-1239.77,0.00036712,2]
[313998255,1707919844855,-881.08,0.00036712,2]
[313998256,1707919844865,-1095.34,0.00036712,2]
[313998257,1707919844874,-500.0,0.00036712,2]
[313998258,1707919844883,-500.0,0.00036712,2]
[313998259,1707919844892,-2412.01,0.00036712,2]
[313998260,1707919844901,-500.0,0.00036712,2]
[313998261,1707919844912,-606.93,0.00036712,2]
[313998262,1707919844921,-630.62,0.00036712,2]
[313998263,1707919844931,-500.0,0.00036712,2]
[313998264,1707919844942,-1217.79,0.00036712,2]
[313998265,1707919844951,-4591.8,0.00036712,2]
[313998266,1707919844960,-999.32,0.00036712,2]
[313998267,1707919844970,-3354.32,0.00036712,2]
[313998268,1707919844979,-4861.03,0.00036712,2]
[313998269,1707919844989,-521.04,0.00036712,2]
[313998270,1707919844998,-1085.93,0.00036712,2]
[313998271,1707919845006,-946.08,0.00036712,2]
[313998272,1707919845020,-530.68625959,0.00036712,2]
[313998273,1707919845029,-1052.19,0.00036712,2]
[313998274,1707919845039,-945.67,0.00036712,2]
[313998275,1707919845048,-523.62,0.00036712,2]
[313998276,1707919845057,-500.0,0.00036712,2]
[313998277,1707919845066,-771.12,0.00036712,2]
[313998278,1707919845075,-837.15,0.00036712,2]
[313998279,1707919845084,-11300.89,0.00036712,2]
[313998280,1707919845093,-500.0,0.00036712,2]
[313998281,1707919845102,-10336.64,0.00036712,2]
[313998282,1707919845111,-925.14,0.00036712,2]
[313998283,1707919845120,-500.0,0.00036712,2]
[313998284,1707919845128,-645.36,0.00036712,2]
[313998285,1707919845138,-500.0,0.00036712,2]
[313998286,1707919845147,-500.0,0.00036712,2]
[313998287,1707919845155,-2369.18,0.00036712,2]
[313998288,1707919845164,-949.36,0.00036712,2]
[313998289,1707919845174,-6266.55,0.00036712,2]
[313998290,1707919845182,-610.83,0.00036712,2]
[313998291,1707919845192,-841.34,0.00036712,2]
[313998292,1707919845200,-3603.61,0.00036712,2]
[313998293,1707919845209,-9338.45,0.00036712,2]
[313998294,1707919845218,-1469.3,0.00036712,2]
[313998295,1707919845228,-1040.93,0.00036712,2]
[313998296,1707919845237,-500.0,0.00036712,2]
[313998297,1707919845247,-500.0,0.00036712,2]
[313998298,1707919845256,-699.89,0.00036712,2]
[313998299,1707919845265,-577.91,0.00036712,2]
[313998300,1707919845275,-913.16,0.00036712,2]
[313998301,1707919845284,-860.7,0.00036712,2]
[313998302,1707919845294,-500.0,0.00036712,2]
[313998303,1707919845303,-500.0,0.00036712,2]
[313998304,1707919845312,-3328.13,0.00036712,2]
[313998306,1707919845323,-775.14,0.00036712,2]
[313998308,1707919845332,-500.0,0.00036712,2]
[313998310,1707919845342,-500.0,0.00036712,2]
[313998312,1707919845352,-410.42984128,0.00036712,2]
[313998314,1707919845361,-775.14,0.00036712,2]
[313998316,1707919845370,-890.36,0.00036712,2]
[313998317,1707919845379,-500.0,0.00036712,2]
[313998318,1707919845388,-1260.25,0.00036712,2]
[313998319,1707919845398,-868.71,0.00036712,2]
[313998320,1707919845408,-500.0,0.00036712,2]
[313998321,1707919845417,-1199.52,0.00036712,2]
[313998322,1707919845427,-500.0,0.00036712,2]
[313998323,1707919845437,-2305.66,0.00036712,2]
[313998324,1707919845446,-500.0,0.00036712,2]
[313998325,1707919845456,-863.13,0.00036712,2]
[313998326,1707919845465,-898.34,0.00036712,2]
[313998327,1707919845476,-500.0,0.00036712,2]
[313998328,1707919845486,-769.11,0.00036712,2]
[313998329,1707919845495,-909.31,0.00036712,2]
[313998330,1707919845505,-811.27,0.00036712,2]
[313998331,1707919845515,-1548.56,0.00036712,2]
[313998332,1707919845525,-500.0,0.00036712,2]
[313998333,1707919845535,-816.72,0.00036712,2]
[313998334,1707919845545,-688.03,0.00036712,2]
[313998335,1707919845555,-607.99,0.00036712,2]
[313998336,1707919845564,-931.31,0.00036712,2]
[313998337,1707919845574,-1403.05,0.00036712,2]
[313998338,1707919845583,-2682.92,0.00036712,2]
[313998339,1707919845592,-500.0,0.00036712,2]
[313998340,1707919845602,-1109.86,0.00036712,2]
[313998341,1707919845611,-500.0,0.00036712,2]
[313998342,1707919845621,-2049.89,0.00036712,2]
[313998343,1707919845630,-2269.21,0.00036712,2]
[313998344,1707919845639,-234.86875804,0.00036712,2]
[313998345,1707919845648,-569.93,0.00036712,2]
[313998346,1707919845658,-500.0,0.00036712,2]
[313998347,1707919845667,-500.0,0.00036712,2]
[313998348,1707919845676,-500.0,0.00036712,2]
[313998349,1707919845685,-3585.64,0.00036712,2]
[313998350,1707919845694,-500.0,0.00036712,2]
[313998351,1707919845703,-907.59,0.00036712,2]
[313998352,1707919845712,-500.0,0.00036712,2]
[313998353,1707919845721,-1099.8,0.00036712,2]
[313998354,1707919845730,-2666.8,0.00036712,2]
[313998355,1707919845739,-821.08,0.00036712,2]
[313998356,1707919845748,-415.04551692,0.00036712,2]
[313998357,1707919845758,-619.0,0.00036712,2]
[313998358,1707919845767,-1772.22,0.00036712,2]
[313998359,1707919845776,-531.49,0.00036712,2]
[313998360,1707919845785,-1406.82,0.00036712,2]
[313998361,1707919845794,-500.0,0.00036712,2]
[313998362,1707919845803,-500.0,0.00036712,2]
[313998363,1707919845812,-1445.56,0.00036712,2]
[313998364,1707919845821,-945.51,0.00036712,2]
[313998365,1707919845830,-500.0,0.00036712,2]
[313998366,1707919845840,-1210.43,0.00036712,2]
[313998367,1707919845849,-1892.42,0.00036712,2]
[313998368,1707919845859,-741.08,0.00036712,2]
[313998369,1707919845868,-805.37,0.00036712,2]
[313998370,1707919845877,-825.95,0.00036712,2]
[313998371,1707919845886,-886.87,0.00036712,2]
[313998372,1707919845895,-500.0,0.00036712,2]
[313998373,1707919845904,-500.0,0.00036712,2]
[313998374,1707919845914,-417.09510476,0.00036712,2]
[313998375,1707919845923,-500.0,0.00036712,2]
[313998376,1707919845934,-500.0,0.00036712,2]
[313998377,1707919845945,-985.11,0.00036712,2]
[313998378,1707919845955,-829.54,0.00036712,2]
[313998379,1707919845964,-1430.37,0.00036712,2]
[313998380,1707919845974,-500.0,0.00036712,2]
[313998381,1707919845984,-3730.94,0.00036712,2]
[313998383,1707919845993,-736.85,0.00036712,2]
[313998384,1707919846002,-3052.69,0.00036712,2]
[313998385,1707919846013,-500.0,0.00036712,2]
[313998386,1707919846022,-500.0,0.00036712,2]
[313998387,1707919846032,-500.0,0.00036712,2]
[313998388,1707919846041,-500.0,0.00036712,2]
[313998389,1707919846051,-500.0,0.00036712,2]
[313998390,1707919846060,-1361.46,0.00036712,2]
[313998391,1707919846069,-500.0,0.00036712,2]
[313998392,1707919846078,-503.83863483,0.00036712,2]
[313998393,1707919846088,-4205.66,0.00036712,2]
[313998394,1707919846097,-690.22,0.00036712,2]
[313998395,1707919846107,-1174.78,0.00036712,2]
[313998396,1707919846117,-1019.96,0.00036712,2]
[313998397,1707919846126,-500.0,0.00036712,2]
[313998398,1707919846135,-500.0,0.00036712,2]
[313998399,1707919846144,-500.0,0.00036712,2]
[313998400,1707919846154,-500.0,0.0003676,2]
[313998401,1707919846163,-1303.35777707,0.00036771,9]
[313998402,1707919846172,-1116.43946716,0.00036782,9]
[313998403,1707919846186,-191.8,0.00036814,2]
[313998404,1707919846195,-150.0,0.00036843,2]
[313998405,1707919846205,-150.0,0.0003687,2]
[313998406,1707919846215,-150.0,0.00036979,2]
[313998407,1707919846226,-500.0,0.00036985,2]
[313998408,1707919846236,-500.0,0.00036985,2]
[313998409,1707919846246,-500.0,0.00036985,2]
[313998410,1707919846256,-500.0,0.00036985,2]
[313998411,1707919846265,-500.0,0.00036986,2]
[313998412,1707919846275,-500.0,0.00036986,2]
[313998413,1707919846284,-500.0,0.00036986,2]
[313998414,1707919846294,-500.0,0.00036986,2]
[313998415,1707919846303,-500.0,0.00036986,2]
[313998416,1707919846312,-500.0,0.00036986,2]
[313998417,1707919846322,-500.0,0.00036986,2]
[313998418,1707919846332,-500.0,0.00036986,2]
[313998419,1707919846342,-500.0,0.00036986,2]
[313998420,1707919846352,-250.0,0.00036986,2]
[313998421,1707919846361,-500.0,0.00036986,2]
[313998422,1707919846371,-500.0,0.00036986,2]
[313998423,1707919846380,-500.0,0.00036986,2]
[313998424,1707919846390,-500.0,0.00036986,2]
[313998425,1707919846400,-500.0,0.00036986,2]
[313998426,1707919846409,-500.0,0.00036986,2]
[313998427,1707919846419,-500.0,0.00036986,2]
[313998428,1707919846429,-500.0,0.00036986,2]
[313998429,1707919846438,-500.0,0.00036986,2]
[313998430,1707919846447,-500.0,0.00036986,2]
[313998431,1707919846456,-500.0,0.00036986,2]
[313998432,1707919846469,-826.49,0.00036986,2]
[313998433,1707919846480,-756.06,0.00036986,2]
[313998434,1707919846489,-500.0,0.00036986,2]
[313998435,1707919846498,-500.0,0.00036986,2]
[313998436,1707919846508,-575.44,0.00036986,2]
[313998437,1707919846517,-500.0,0.00036986,2]
[313998438,1707919846527,-500.0,0.00036986,2]
[313998439,1707919846537,-500.0,0.00036986,2]
[313998440,1707919846546,-534.74,0.00036986,2]
[313998441,1707919846556,-500.0,0.00036986,2]
[313998442,1707919846565,-951.22,0.00036986,2]
[313998443,1707919846575,-500.0,0.00036986,2]
[313998444,1707919846585,-500.0,0.00036986,2]
[313998445,1707919846594,-500.0,0.00036986,2]
[313998446,1707919846604,-905.24,0.00036986,2]
[313998447,1707919846613,-500.0,0.00036986,2]
[313998448,1707919846623,-500.0,0.00036986,2]
[313998449,1707919846632,-562.17235673,0.00036986,2]
[313998450,1707919846641,-529.87,0.00036986,2]
[313998451,1707919846651,-500.0,0.00036986,2]
[313998452,1707919846660,-508.14,0.00036986,2]
[313998453,1707919846669,-500.0,0.00036986,2]
[313998454,1707919846679,-500.0,0.00036986,2]
[313998455,1707919846688,-1032.9,0.00036986,2]
[313998456,1707919846698,-500.0,0.00036986,2]
[313998457,1707919846707,-706.47,0.00036986,2]
[313998458,1707919846716,-722.75,0.00036986,2]
[313998459,1707919846726,-500.0,0.00036986,2]
[313998460,1707919846738,-435.36676498,0.00036986,2]
[313998461,1707919846748,-537.78619568,0.00036986,2]
[313998462,1707919846758,-902.63,0.00036986,2]
[313998463,1707919846767,-946.15,0.00036986,2]
[313998464,1707919846776,-963.24,0.00036986,2]
[313998465,1707919846786,-500.0,0.00036986,2]
[313998466,1707919846795,-500.0,0.00036986,2]
[313998467,1707919846804,-900.9,0.00036986,2]
[313998468,1707919846813,-500.0,0.00036986,2]
[313998469,1707919846822,-500.0,0.00036986,2]
[313998470,1707919846831,-1130.02,0.00036986,2]
[313998471,1707919846840,-553.76,0.00036986,2]
[313998472,1707919846850,-500.0,0.00036986,2]
[313998473,1707919846859,-548.06,0.00036986,2]
[313998474,1707919846869,-765.2,0.00036986,2]
[313998475,1707919846878,-478.30163934,0.00036986,2]
[313998476,1707919846888,-793.33,0.00036986,2]
[313998477,1707919846897,-500.0,0.00036986,2]
[313998478,1707919846907,-500.0,0.00036986,2]
[313998479,1707919846915,-1203.69,0.00036986,2]
[313998480,1707919846925,-500.0,0.00036986,2]
[313998481,1707919846937,-500.0,0.00036986,2]
[313998482,1707919846946,-600.22,0.00036986,2]
[313998483,1707919846956,-500.0,0.00036986,2]
[313998484,1707919846964,-500.0,0.00036986,2]
[313998485,1707919846975,-500.0,0.00036986,2]
[313998486,1707919846984,-588.32589572,0.00036986,2]
[313998487,1707919846993,-500.0,0.00036986,2]
[313998488,1707919847003,-265.79963588,0.00036986,2]
[313998489,1707919847014,-500.0,0.00036986,2]
[313998490,1707919847023,-500.0,0.00036986,2]
[313998491,1707919847033,-500.0,0.00036986,2]
[313998492,1707919847043,-695.17,0.00036986,2]
[313998493,1707919847053,-500.0,0.00036986,2]
[313998494,1707919847064,-662.63,0.00036986,2]
[313998495,1707919847073,-500.0,0.00036986,2]
[313998496,1707919847083,-500.0,0.00036986,2]
[313998497,1707919847093,-500.0,0.00036986,2]
[313998498,1707919847104,-500.0,0.00036986,2]
[313998499,1707919847113,-500.0,0.00036986,2]
[313998500,1707919847123,-500.0,0.00036986,2]
[313998501,1707919847134,-500.0,0.00036986,2]
[313998502,1707919847144,-1481.61,0.00036986,2]
[313998503,1707919847154,-575.85,0.00036986,2]